bitfinex/quotes_ETHUSD_20260208
["timestamp","ask_amount","ask_price","bid_price","bid_amount"]
[1770583056924,1.18024737,2118.2,2117.8,0.001]
[1770583059433,0.9391748,2118.5,2117.8,0.92368468]
[1770583059719,1.18017956,2118.4,2117.9,0.001]
[1770583059944,2.11935436,2118.4,2117.9,0.001]
[1770583060634,1.18017956,2118.4,2117.9,0.001]
[1770583062338,2.11935436,2118.4,2117.9,0.001]
[1770583063734,2.11935436,2118.4,2118.0,0.001]
[1770583063922,0.0011,2118.2,2118.0,0.001]
[1770583064631,0.0011,2118.2,2118.0,0.002]
[1770583067650,0.0011,2118.2,2118.0,0.001]
[1770583069549,0.0011,2118.2,2118.0,0.002]
[1770583069749,0.9561257,2118.2,2117.8,0.001]
[1770583070049,0.9550257,2118.0,2117.5,0.001]
[1770583070348,0.9550257,2118.0,2117.6,0.001]
[1770583072850,0.9550257,2117.8,2117.3,0.001]
[1770583075560,10.17275605,2117.9,2117.3,0.001]
[1770583076455,0.9550257,2117.8,2117.5,0.001]
[1770583076754,0.9561257,2117.8,2117.5,0.001]
[1770583077655,2.1366506,2117.8,2117.5,0.001]
[1770583079028,0.9550257,2117.6,2117.1,0.001]
[1770583079332,1.1816249,2117.8,2117.1,0.90327516]
[1770583079533,2.1366506,2117.8,2117.1,0.90327516]
[1770583080148,0.9550257,2117.7,2117.1,0.001]
[1770583080953,1.1816249,2117.8,2117.2,0.90227516]
[1770583082454,0.0011,2117.8,2117.3,0.90227516]
[1770583084327,0.0011,2117.8,2117.5,0.90227516]
[1770583086760,0.0011,2117.8,2117.5,1.18063356]
[1770583086954,0.0011,2117.8,2117.6,0.90227516]
[1770583088833,0.0011,2117.8,2117.7,0.001]
[1770583089039,0.0011,2117.8,2117.7,0.90327516]
[1770583089532,0.0011,2117.8,2117.7,0.001]
[1770583095246,8.03841579,2117.8,2117.1,0.93207815]
[1770583095446,0.97365071,2117.8,2117.2,1.18079354]
[1770583095837,0.97365071,2117.8,2117.1,2.11290309]
[1770583096568,0.97365071,2117.8,2117.2,1.180792]
[1770583096864,0.97365071,2117.8,2117.1,2.11289811]
[1770583097167,1.18052604,2117.7,2117.1,2.11289811]
[1770583097463,2.15415908,2117.8,2117.1,2.11289811]
[1770583097666,2.15415908,2117.8,2117.1,1.18181996]
[1770583097868,2.15415908,2117.8,2117.2,0.93107815]
[1770583100857,2.15415908,2117.8,2117.3,0.001]
[1770583101372,0.0011,2117.6,2117.3,0.001]
[1770583103773,0.0011,2117.6,2117.3,0.93207815]
[1770583106152,0.0011,2117.6,2117.3,0.001]
[1770583108480,0.97255071,2117.5,2117.1,0.001]
[1770583109665,0.97255071,2117.5,2116.9,5.4103158]
[1770583109858,0.0011,2117.6,2117.0,0.93107815]
[1770583111552,0.0011,2117.6,2117.1,0.93107815]
[1770583111979,0.0011,2117.6,2117.2,0.93107815]
[1770583112858,0.0011,2117.6,2117.3,0.93207815]
[1770583119590,0.0011,2117.6,2117.3,0.001]
[1770583120698,0.0011,2117.6,2117.3,2.11282028]
[1770583120997,0.0011,2117.6,2117.4,0.93107815]
[1770583121486,0.0011,2117.6,2117.3,0.001]
[1770583122489,0.0011,2117.6,2117.3,0.93207815]
[1770583124274,0.0011,2117.6,2117.5,0.93107815]
[1770583125969,0.0011,2117.6,2117.3,0.94938299]
[1770583126291,0.0011,2117.6,2117.3,0.001]
[1770583128091,0.0011,2117.6,2117.3,0.94938299]
[1770583128290,0.0011,2117.6,2117.3,2.13012562]
[1770583135222,0.0011,2117.6,2117.3,0.001]
[1770583136721,0.93050442,2117.6,2117.1,0.001]
[1770583136913,0.0011,2117.6,2117.1,0.94938299]
[1770583137114,0.0011,2117.6,2117.2,0.94838299]
[1770583138295,0.0011,2117.4,2117.2,0.94838299]
[1770583140621,0.0011,2117.6,2117.2,10.16804334]
[1770583140928,0.0011,2117.6,2117.3,0.94838299]
[1770583142533,0.0011,2117.6,2117.2,9.21966035]
[1770583142699,0.0011,2117.6,2117.2,1.18080032]
[1770583143022,0.0011,2117.6,2117.2,2.12918331]
[1770583143399,0.0011,2117.6,2117.2,0.94838299]
[1770583143729,0.0011,2117.6,2117.2,2.12918661]
[1770583145202,0.0011,2117.6,2117.2,0.94838299]
[1770583145728,0.0011,2117.6,2117.2,2.12918709]
[1770583147947,0.93050442,2117.6,2117.1,0.001]
[1770583148930,0.92940442,2117.4,2117.1,0.001]
[1770583149726,1.9492813,2117.3,2117.1,0.001]
[1770583149908,2.1101719,2117.3,2117.1,0.001]
[1770583151105,0.92940442,2117.3,2117.1,0.001]
[1770583151526,2.11016585,2117.3,2117.1,0.001]
[1770583152623,0.0011,2117.4,2117.1,0.001]
[1770583152827,0.0011,2117.4,2117.1,0.94938299]
[1770583153308,0.0011,2117.4,2117.1,0.001]
[1770583154539,2.11120524,2117.4,2117.1,0.001]
[1770583154743,2.1101699,2117.3,2117.1,0.001]
[1770583158216,0.99067473,2117.2,2117.1,0.001]
[1770583158852,0.99067473,2117.2,2116.9,0.001]
[1770583159023,0.99067473,2117.1,2116.9,0.001]
[1770583160943,2.17154776,2117.1,2116.9,0.001]
[1770583161736,2.17154776,2117.1,2117.0,0.001]
[1770583161944,3.18998223,2117.1,2117.0,0.001]
[1770583164336,2.1993075,2117.1,2117.0,0.001]
[1770583164527,2.1993075,2117.1,2116.9,0.001]
[1770583164728,1.18087303,2117.1,2116.9,0.001]
[1770583164933,0.99177473,2117.4,2116.9,0.001]
[1770583165140,2.19904636,2117.3,2116.9,0.001]
[1770583165323,2.19907475,2117.2,2116.9,0.97253831]
[1770583165528,1.18081707,2117.2,2116.9,0.001]
[1770583168443,5.71464216,2117.4,2116.9,0.001]
[1770583168754,0.99067473,2117.2,2116.9,0.001]
[1770583170349,4.72396743,2117.4,2116.9,0.001]
[1770583170654,2.00887926,2117.3,2116.9,0.001]
[1770583170836,1.01820453,2117.2,2116.9,0.001]
[1770583171038,0.99067473,2117.3,2116.9,0.001]
[1770583171334,1.01820584,2117.2,2116.9,0.001]
[1770583171524,0.99067473,2117.3,2116.9,0.001]
[1770583171726,1.01831454,2117.2,2116.9,0.001]
[1770583171928,0.99067473,2117.3,2116.9,0.001]
[1770583172127,1.01831471,2117.2,2116.9,0.001]
[1770583172343,1.01845905,2117.1,2116.9,0.001]
[1770583172552,1.18080483,2117.2,2116.9,0.001]
[1770583172855,1.01845929,2117.1,2116.9,0.001]
[1770583173038,1.18080483,2117.2,2116.9,0.001]
[1770583173356,1.01845775,2117.1,2116.9,0.001]
[1770583173541,1.18080483,2117.2,2116.9,0.001]
[1770583173747,0.0011,2117.0,2116.9,0.001]
[1770583179341,1.02116129,2117.0,2116.9,0.001]
[1770583181678,1.02116129,2117.0,2116.6,1.18058622]
[1770583181846,0.0011,2117.0,2116.6,2.15212453]
[1770583183265,1.18202866,2117.0,2116.6,0.97153831]
[1770583183474,1.18202866,2117.0,2116.5,3.301]
[1770583183838,1.18202866,2117.0,2116.5,4.27253831]
[1770583184339,1.02059598,2116.9,2116.5,4.27253831]
[1770583184560,0.0011,2117.0,2116.5,4.27253831]
[1770583184869,1.02059685,2116.9,2116.5,4.27253831]
[1770583185073,0.0011,2117.0,2116.5,4.27253831]
[1770583185237,1.02059685,2116.9,2116.5,3.301]
[1770583185437,0.97181978,2117.0,2116.5,3.301]
[1770583185663,1.02073153,2116.9,2116.5,3.301]
[1770583185864,0.97181978,2117.0,2116.5,3.301]
[1770583186062,1.02073296,2116.9,2116.5,4.2363895]
[1770583186367,0.0011,2117.0,2116.7,0.001]
[1770583186572,0.0011,2116.8,2116.7,0.001]
[1770583189149,1.02236626,2116.8,2116.7,0.001]
[1770583196749,1.02236626,2116.8,2116.5,3.301]
[1770583196954,0.0011,2116.8,2116.5,3.301]
[1770583197575,0.97181978,2116.8,2116.5,0.001]
[1770583198973,0.0011,2116.6,2116.5,0.001]
[1770583200668,1.02149846,2116.6,2116.5,0.001]
[1770583201057,2.20263802,2116.6,2116.5,0.001]
[1770583201259,2.20263802,2116.6,2116.1,0.001]
[1770583201260,0.97071978,2116.5,2116.0,3.302]
[1770583201456,1.02039846,2116.4,2115.7,0.9363895]
[1770583201781,1.02039846,2116.3,2115.8,0.9353895]
[1770583201974,1.02039846,2116.3,2115.7,0.001]
[1770583201975,1.02039846,2116.2,2115.7,0.001]
[1770583202148,0.97071978,2116.3,2115.7,0.001]
[1770583202347,1.01954782,2116.2,2115.7,0.001]
[1770583202549,0.97071978,2116.3,2115.7,0.001]
[1770583202748,1.01952554,2116.2,2115.7,0.001]
[1770583202945,1.019541,2116.1,2115.7,0.001]
[1770583203169,1.18153031,2115.9,2115.2,0.9353895]
[1770583204450,8.0457869,2115.5,2115.0,6.26359254]
[1770583204791,1.01761092,2115.4,2115.0,6.26359254]
[1770583205262,2.19946486,2115.4,2115.0,6.26359254]
[1770583205459,1.18185394,2115.4,2115.0,6.26359254]
[1770583205794,1.18185394,2115.4,2115.0,6.01662254]
[1770583205999,2.15257372,2115.4,2115.0,6.01662254]
[1770583206151,0.97071978,2115.3,2115.0,5.59721925]
[1770583206354,0.97071978,2115.3,2114.6,0.9353895]
[1770583207277,1.18192133,2115.2,2114.6,0.9353895]
[1770583207576,1.18192133,2115.2,2114.7,0.9353895]
[1770583207775,1.18169786,2115.6,2114.8,0.9353895]
[1770583208878,1.18161458,2115.8,2115.0,0.9353895]
[1770583209256,1.18161458,2115.8,2115.2,0.9353895]
[1770583209458,0.97071978,2116.1,2115.2,0.9353895]
[1770583209651,0.97071978,2116.1,2115.4,0.9353895]
[1770583211258,0.0011,2115.9,2115.4,0.9353895]
[1770583211463,0.0011,2115.9,2115.4,2.11718954]
[1770583212391,0.0011,2115.9,2115.4,0.9353895]
[1770583213385,0.0011,2115.9,2115.2,1.18289104]
[1770583213586,0.97071978,2115.8,2115.2,0.001]
[1770583214491,0.97071978,2115.8,2115.2,0.9363895]
[1770583215993,2.15235724,2115.8,2115.2,0.9363895]
[1770583217396,1.18163746,2115.8,2115.2,0.9363895]
[1770583218085,4.72730763,2115.9,2115.2,0.9363895]
[1770583219473,1.18263031,2115.9,2115.3,0.94380501]
[1770583221999,1.18263031,2115.9,2115.4,0.94380501]
[1770583223377,1.18263031,2115.9,2115.2,2.12668719]
[1770583223569,1.18263031,2115.9,2115.3,0.94380501]
[1770583224300,0.0011,2115.7,2115.3,0.94380501]
[1770583228582,0.0011,2115.9,2115.4,0.94380501]
[1770583229285,0.0011,2115.9,2115.3,9.22764503]
[1770583229286,0.0011,2115.9,2115.6,0.94380501]
[1770583230605,0.0011,2115.9,2115.6,2.12549735]
[1770583231102,0.0011,2115.9,2115.4,1.18180135]
[1770583231399,1.01889482,2115.8,2115.4,2.12560636]
[1770583231600,0.0011,2115.9,2115.4,2.12560636]
[1770583231780,1.0188976,2115.8,2115.5,0.94380501]
[1770583231982,0.0011,2115.9,2115.5,0.94380501]
[1770583232182,1.01889724,2115.8,2115.5,0.94380501]
[1770583232479,0.0011,2115.9,2115.5,0.94380501]
[1770583232680,1.01926943,2115.8,2115.5,0.94380501]
[1770583232881,0.0011,2115.9,2115.5,0.94380501]
[1770583233084,0.0011,2116.6,2115.8,8.0457869]
[1770583233287,1.01906965,2116.5,2115.9,0.94380501]
[1770583233483,1.01906965,2116.4,2115.9,0.94380501]
[1770583233683,1.01906965,2116.3,2115.9,0.94380501]
[1770583233892,1.01906965,2116.2,2115.9,0.94380501]
[1770583234106,1.18224012,2116.6,2115.9,0.94380501]
[1770583234291,1.01858794,2116.5,2115.9,0.94380501]
[1770583234493,1.01858794,2116.4,2116.0,0.94380501]
[1770583234710,1.01858794,2116.3,2116.0,0.94380501]
[1770583234911,0.0011,2116.6,2116.0,0.94380501]
[1770583235208,1.01857607,2116.5,2116.0,0.94380501]
[1770583235397,1.01857607,2116.4,2116.0,0.94380501]
[1770583235599,1.01857607,2116.3,2116.0,0.94380501]
[1770583235792,0.0011,2116.6,2116.0,0.94380501]
[1770583235992,1.01831273,2116.5,2116.0,0.94380501]
[1770583236187,1.01831273,2116.4,2116.0,0.94380501]
[1770583236389,0.0011,2116.6,2116.1,2.12522365]
[1770583236591,1.01813239,2116.5,2116.1,2.12522365]
[1770583236793,1.01813239,2116.4,2116.1,2.12522365]
[1770583237006,0.0011,2116.6,2116.1,2.12522365]
[1770583237205,1.01809079,2116.5,2116.1,2.12522365]
[1770583237410,1.1822407,2116.6,2116.1,0.94380501]
[1770583237590,1.01795146,2116.5,2116.0,1.18144353]
[1770583237785,1.1822407,2116.6,2116.0,2.12524854]
[1770583237984,1.01795205,2116.5,2116.0,2.12524854]
[1770583238184,1.1822407,2116.6,2116.0,2.12524854]
[1770583238406,1.01774735,2116.5,2116.0,2.12524854]
[1770583238584,0.0011,2116.6,2116.0,2.12524854]
[1770583238784,0.0011,2116.6,2116.1,0.94380501]
[1770583239594,0.0011,2116.6,2116.0,9.22723043]
[1770583239595,0.0011,2116.8,2116.5,0.94380501]
[1770583240308,0.0011,2117.0,2116.7,0.94380501]
[1770583241792,0.0011,2117.0,2116.5,4.72470998]
[1770583241793,0.0011,2117.0,2116.5,2.12495965]
[1770583242502,0.0011,2117.0,2116.6,1.18113451]
[1770583248110,0.0011,2116.8,2116.6,1.18113451]
[1770583251234,0.0011,2116.8,2116.5,1.18119536]
[1770583253816,0.0011,2116.8,2116.5,0.93105554]
[1770583257027,0.0011,2116.8,2116.6,1.18113956]
[1770583258720,0.0011,2116.8,2116.4,1.18122875]
[1770583259099,0.0011,2116.8,2116.4,2.11228429]
[1770583259701,0.0011,2116.8,2116.4,1.18122875]
[1770583260121,0.0011,2116.8,2116.4,2.11228429]
[1770583261025,0.0011,2116.8,2116.6,0.001]
[1770583264341,0.0011,2117.7,2117.4,0.93105554]
[1770583265111,0.0011,2118.0,2117.6,8.04553702]
[1770583265323,0.0011,2118.1,2117.6,8.04553702]
[1770583265629,0.93377856,2118.1,2117.3,2.11176269]
[1770583266137,0.93377856,2118.1,2117.5,0.93105554]
[1770583266138,0.0011,2118.1,2117.5,0.93105554]
[1770583266332,0.0011,2118.1,2117.6,0.93105554]
[1770583268331,0.0011,2118.1,2117.5,1.18059733]
[1770583268538,0.93377856,2118.1,2117.5,1.18059733]
[1770583270509,0.93377856,2118.1,2117.5,2.11165287]
[1770583270738,0.0011,2118.1,2117.6,0.93105554]
[1770583271603,0.0011,2118.1,2117.5,1.18059733]
[1770583271604,0.0011,2118.1,2117.5,2.11165287]
[1770583272052,0.0011,2118.1,2117.6,0.93105554]
[1770583272330,0.0011,2118.1,2117.7,2.11158158]
[1770583272509,0.0011,2118.1,2117.7,0.93105554]
[1770583273311,0.0011,2118.1,2117.7,0.93205554]
[1770583273616,0.0011,2117.9,2117.7,0.93205554]
[1770583277920,0.0011,2117.9,2117.7,0.001]
[1770583277921,0.91785262,2117.9,2117.7,0.001]
[1770583278432,0.0011,2117.9,2117.7,0.001]
[1770583278948,0.0011,2118.1,2117.7,2.11754231]
[1770583279244,0.0011,2118.1,2117.7,0.93701627]
[1770583281035,0.0011,2118.1,2117.7,2.11414496]
[1770583281263,0.0011,2118.1,2117.7,2.11059788]
[1770583285456,0.0011,2118.1,2117.9,0.001]
[1770583288057,0.0011,2118.2,2117.9,0.001]
[1770583288058,0.0011,2118.2,2117.9,1.18141456]
[1770583289155,0.0011,2118.2,2117.9,2.11743083]
[1770583290056,0.0011,2118.2,2118.0,0.93601627]
[1770583290250,0.0011,2118.2,2118.0,2.11635366]
[1770583290454,0.0011,2118.5,2118.1,0.93601627]
[1770583292264,0.0011,2118.5,2118.1,1.18027976]
[1770583292434,0.0011,2118.5,2118.2,0.93601627]
[1770583297361,0.0011,2118.5,2118.2,2.11625969]
[1770583297552,0.0011,2118.3,2118.2,0.93601627]
[1770583297752,0.0022,2118.5,2118.2,0.93601627]
[1770583297935,0.0022,2118.5,2118.2,2.11626237]
[1770583298255,0.0022,2118.5,2118.2,0.93601627]
[1770583298960,0.0022,2118.5,2118.3,0.93601627]
[1770583303070,0.0022,2118.5,2118.1,2.11627526]
[1770583303672,0.0022,2118.5,2118.2,0.93601627]
[1770583307367,0.0011,2118.5,2118.2,0.93601627]
[1770583307962,0.98842593,2118.4,2117.9,0.001]
[1770583308346,0.98842593,2118.3,2117.9,0.001]
[1770583308669,0.98732593,2118.3,2117.9,0.001]
[1770583310160,0.98842593,2118.3,2117.9,0.001]
[1770583310542,0.98842593,2118.3,2118.1,0.001]
[1770583312647,0.0011,2118.3,2118.1,0.001]
[1770583313445,0.0011,2118.2,2118.1,0.001]
[1770583314670,0.0011,2118.3,2118.1,0.001]
[1770583314964,0.0011,2118.6,2118.3,0.9217414]
[1770583315167,2.16845659,2118.6,2118.1,0.001]
[1770583315668,0.98842593,2118.6,2118.1,0.001]
[1770583316171,2.16845991,2118.6,2118.1,0.001]
[1770583316353,0.98842593,2118.6,2118.1,0.001]
[1770583316774,0.98842593,2118.6,2118.1,1.1813031]
[1770583317557,0.98732593,2118.5,2118.1,0.001]
[1770583317758,2.16845508,2118.6,2118.1,0.001]
[1770583318254,0.98732593,2118.5,2118.1,0.001]
[1770583319667,0.0011,2118.6,2118.1,0.001]
[1770583319970,0.98842593,2118.6,2118.1,0.001]
[1770583320169,2.16845054,2118.6,2118.1,0.001]
[1770583321774,0.98732593,2118.5,2118.1,0.001]
[1770583321992,0.98732593,2118.3,2117.9,0.001]
[1770583322690,1.01979475,2118.2,2117.9,0.001]
[1770583322891,1.01979475,2118.1,2118.0,0.001]
[1770583333483,1.01979475,2118.1,2118.0,0.9227414]
[1770583333687,0.0011,2118.3,2118.0,0.9227414]
[1770583334386,0.0011,2118.3,2118.0,0.001]
[1770583334884,0.0011,2118.3,2118.2,0.001]
[1770583335289,1.0195805,2118.3,2118.2,0.001]
[1770583336292,0.0011,2118.3,2118.2,0.001]
[1770583338189,0.0011,2118.6,2118.3,0.96563776]
[1770583339484,0.0011,2118.6,2118.3,2.14581801]
[1770583340594,0.0011,2118.6,2118.3,0.96563776]
[1770583345208,0.93108307,2118.6,2118.2,0.001]
[1770583345405,1.01748502,2118.5,2118.2,0.001]
[1770583345586,1.01748502,2118.4,2118.2,0.001]
[1770583345787,0.93108307,2118.6,2118.2,0.001]
[1770583345987,1.94753497,2118.5,2118.2,0.001]
[1770583346317,1.0175519,2118.4,2118.2,0.001]
[1770583347582,1.0186519,2118.4,2118.2,0.001]
[1770583347786,0.0011,2118.4,2118.2,0.001]
[1770583351804,0.92998307,2118.3,2118.1,0.001]
[1770583352103,1.94761926,2118.3,2118.0,0.001]
[1770583352305,1.01763619,2118.2,2118.0,0.001]
[1770583353910,2.19793479,2118.2,2118.0,0.001]
[1770583354099,1.1802986,2118.2,2118.0,0.001]
[1770583357214,1.01783699,2118.1,2118.0,0.001]
[1770583363606,1.01776681,2118.1,2118.0,0.001]
[1770583364220,0.86776681,2118.1,2118.0,0.001]
[1770583364722,0.0011,2118.2,2118.0,0.001]
[1770583366836,0.0011,2118.2,2118.0,0.99509523]
[1770583370430,0.0011,2118.2,2118.0,0.001]
[1770583371363,8.03551925,2118.2,2117.9,0.001]
[1770583371632,8.93903049,2118.0,2117.6,0.001]
[1770583372192,8.94013049,2118.0,2117.6,0.001]
[1770583372396,1.18041456,2117.9,2117.6,0.001]
[1770583372819,2.0850258,2117.9,2117.6,0.001]
[1770583373034,0.90461124,2117.8,2117.5,0.001]
[1770583373442,8.93903049,2117.7,2117.3,0.001]
[1770583373949,0.90461124,2117.6,2117.3,0.001]
[1770583374841,2.08523017,2117.6,2117.3,0.001]
[1770583375431,8.03441925,2117.5,2117.2,0.001]
[1770583375750,2.08523017,2117.6,2117.2,0.001]
[1770583376326,1.01790471,2117.5,2117.2,0.001]
[1770583376525,2.08523017,2117.6,2117.2,0.001]
[1770583376711,1.0175148,2117.5,2117.2,0.001]
[1770583376918,2.08523017,2117.6,2117.2,0.001]
[1770583377227,2.1981703,2117.5,2117.2,0.001]
[1770583377430,1.18065145,2117.5,2117.2,0.001]
[1770583380250,1.18062204,2117.6,2117.2,0.001]
[1770583380431,1.01659462,2117.5,2117.2,0.001]
[1770583380632,1.18062204,2117.6,2117.2,0.001]
[1770583380859,1.01659432,2117.5,2117.2,0.99509523]
[1770583381068,1.18062204,2117.6,2117.2,0.99509523]
[1770583381349,1.01644814,2117.5,2117.2,0.001]
[1770583381530,1.18062204,2117.6,2117.2,0.001]
[1770583381721,1.01658726,2117.5,2117.2,0.001]
[1770583381920,1.18062204,2117.6,2117.2,0.001]
[1770583382122,1.01658769,2117.5,2117.2,0.99509523]
[1770583382340,0.0011,2118.0,2117.3,0.99409523]
[1770583382647,1.18145923,2118.0,2117.3,0.99409523]
[1770583383250,0.0011,2118.0,2117.3,0.99409523]
[1770583383429,0.0011,2118.0,2117.4,8.03441925]
[1770583383624,0.0011,2118.0,2117.5,0.99409523]
[1770583383960,0.0011,2118.2,2117.5,0.99409523]
[1770583384125,0.0011,2118.2,2118.0,1.18035882]
[1770583384443,0.0011,2118.2,2118.1,0.99409523]
[1770583384956,0.0011,2118.2,2117.9,2.17446748]
[1770583385526,0.0011,2118.2,2118.0,0.99409523]
[1770583386855,0.0011,2118.2,2118.1,0.99409523]
[1770583391857,0.0011,2118.2,2118.1,2.17439833]
[1770583395264,0.0011,2118.2,2118.1,0.99409523]
[1770583400382,0.0011,2118.2,2118.0,0.001]
[1770583403990,0.0011,2118.4,2118.1,0.91183095]
[1770583404359,0.0011,2118.4,2118.1,2.09212881]
[1770583408464,0.0011,2118.4,2118.2,0.001]
[1770583411699,0.9387124,2118.4,2118.2,0.001]
[1770583412175,1.01910485,2118.3,2118.2,0.001]
[1770583412368,1.95671725,2118.3,2118.2,0.001]
[1770583413262,3.13690891,2118.3,2118.2,0.001]
[1770583416095,3.13690891,2118.3,2118.0,0.001]
[1770583416271,1.01910485,2118.2,2118.0,0.001]
[1770583416595,1.01910485,2118.2,2117.7,2.09232035]
[1770583416596,2.11780406,2118.3,2117.7,2.08708591]
[1770583416784,1.01985572,2118.2,2117.7,2.08708591]
[1770583416975,2.11780406,2118.3,2117.7,2.08708591]
[1770583417170,3.13773466,2118.2,2117.5,1.18163754]
[1770583417392,1.01985596,2118.1,2117.5,2.09346849]
[1770583417588,1.01985596,2118.0,2117.6,0.91183095]
[1770583417777,2.1178787,2118.2,2117.6,0.91183095]
[1770583417979,1.01989037,2118.1,2117.6,0.91183095]
[1770583418175,2.1178787,2118.2,2117.6,0.91183095]
[1770583418176,1.01989037,2118.0,2117.6,0.91183095]
[1770583418372,2.1178787,2118.2,2117.6,0.91183095]
[1770583418574,1.01971635,2118.1,2117.6,0.91183095]
[1770583418769,1.01971635,2118.0,2117.6,0.91183095]
[1770583419091,2.1178787,2118.2,2117.6,0.91183095]
[1770583419296,1.01956362,2118.1,2117.6,2.09237536]
[1770583419591,1.01956362,2118.0,2117.6,2.09237536]
[1770583419795,2.1178787,2118.2,2117.6,2.09237536]
[1770583419976,1.95717672,2118.1,2117.5,1.18160192]
[1770583420294,1.95717672,2118.0,2117.5,0.001]
[1770583420505,1.95717672,2117.9,2117.5,0.001]
[1770583420668,1.01956432,2117.8,2117.5,0.001]
[1770583420869,0.9387124,2118.1,2117.5,0.001]
[1770583421089,1.01954221,2118.0,2117.5,0.91283095]
[1770583421278,1.01954221,2117.9,2117.6,0.001]
[1770583421480,1.01954221,2117.8,2117.6,0.001]
[1770583421684,2.11905389,2118.1,2117.6,0.001]
[1770583421886,1.01903135,2118.0,2117.6,0.91283095]
[1770583422100,1.01903135,2117.9,2117.6,0.91283095]
[1770583422289,1.18141128,2118.1,2117.6,0.91283095]
[1770583422490,1.01867458,2118.0,2117.6,0.91283095]
[1770583422799,1.01867458,2117.9,2117.6,0.91283095]
[1770583422982,1.18141128,2118.1,2117.6,0.91283095]
[1770583423297,1.0184343,2118.0,2117.6,0.91283095]
[1770583423493,1.0184343,2117.9,2117.6,0.91283095]
[1770583423701,1.18141128,2118.1,2117.6,0.91283095]
[1770583423902,1.01843127,2118.0,2117.6,0.91283095]
[1770583424075,1.01843127,2117.9,2117.6,0.91283095]
[1770583424276,1.18141128,2118.1,2117.6,0.91283095]
[1770583424477,1.0182683,2118.0,2117.6,0.91283095]
[1770583424678,1.0182683,2117.9,2117.6,0.91283095]
[1770583424901,1.18141128,2118.1,2117.6,0.91283095]
[1770583425084,1.01826849,2118.0,2117.6,0.91283095]
[1770583425284,1.01826849,2117.9,2117.6,0.91283095]
[1770583425594,1.18141128,2118.1,2117.6,0.91283095]
[1770583425776,1.01813767,2118.0,2117.6,0.91283095]
[1770583426105,1.18141128,2118.1,2117.6,0.91283095]
[1770583426285,1.01802655,2118.0,2117.6,0.91283095]
[1770583426486,1.18141128,2118.1,2117.6,0.91283095]
[1770583426692,1.0180225,2118.0,2117.6,0.91283095]
[1770583426893,1.18141128,2118.1,2117.6,0.91283095]
[1770583427094,1.01802244,2118.0,2117.6,0.91283095]
[1770583427402,1.18141128,2118.1,2117.6,0.91283095]
[1770583427593,1.01794349,2118.0,2117.6,0.91283095]
[1770583427792,1.18141128,2118.1,2117.6,0.91283095]
[1770583427995,1.01794372,2118.0,2117.6,0.91283095]
[1770583428193,1.18141128,2118.1,2117.6,0.91283095]
[1770583428492,1.01788981,2118.0,2117.6,0.91283095]
[1770583428692,1.18141128,2118.1,2117.6,0.91283095]
[1770583428875,1.01788969,2118.0,2117.6,0.91283095]
[1770583429075,1.18141128,2118.1,2117.6,0.91283095]
[1770583429275,1.01785831,2118.0,2117.6,0.91283095]
[1770583429574,1.18141128,2118.1,2117.6,0.91283095]
[1770583429774,1.01785837,2118.0,2117.6,0.91283095]
[1770583429987,1.18141128,2118.1,2117.6,0.91283095]
[1770583430204,1.01785763,2118.0,2117.6,0.91283095]
[1770583430403,1.18141128,2118.1,2117.6,0.91283095]
[1770583430579,1.01785622,2118.0,2117.6,0.91283095]
[1770583430781,1.18140523,2118.1,2117.6,0.91283095]
[1770583430981,1.01785552,2118.0,2117.6,0.91283095]
[1770583431176,0.0011,2118.1,2117.7,0.97637177]
[1770583431905,0.0011,2118.1,2117.7,2.15686345]
[1770583432406,0.0011,2118.1,2117.8,0.97637177]
[1770583433706,0.0011,2118.1,2117.9,0.001]
[1770583435309,0.0011,2118.1,2117.6,0.001]
[1770583435310,9.95660113,2118.0,2117.6,0.001]
[1770583435498,1.01799794,2117.9,2117.6,0.001]
[1770583435688,8.9386289,2118.0,2117.6,0.001]
[1770583435888,1.01800391,2117.9,2117.6,0.001]
[1770583436201,0.90081755,2118.0,2117.6,0.001]
[1770583436417,1.01808598,2117.9,2117.6,0.001]
[1770583436700,2.08121817,2118.0,2117.6,0.001]
[1770583436899,1.01808758,2117.9,2117.6,0.001]
[1770583437105,2.08121817,2118.0,2117.6,0.001]
[1770583437307,1.0181795,2117.9,2117.6,0.001]
[1770583437493,2.08121817,2118.0,2117.6,0.001]
[1770583437693,1.0181875,2117.9,2117.6,0.001]
[1770583437902,2.08121817,2118.0,2117.6,0.001]
[1770583438110,1.0181756,2117.9,2117.6,0.001]
[1770583438407,2.08121817,2118.0,2117.6,0.001]
[1770583438613,1.01829522,2117.9,2117.6,0.001]
[1770583438804,2.08121817,2118.0,2117.6,0.001]
[1770583439113,1.01830057,2117.9,2117.6,0.001]
[1770583439289,2.08121817,2118.0,2117.6,0.001]
[1770583439490,1.0184608,2117.9,2117.6,0.001]
[1770583439700,2.08121817,2118.0,2117.6,0.001]
[1770583440013,1.01845972,2117.9,2117.6,0.001]
[1770583440313,2.08121817,2118.0,2117.6,0.001]
[1770583440611,1.01865003,2117.9,2117.6,0.001]
[1770583440796,1.18040062,2118.0,2117.6,0.001]
[1770583440996,1.01864291,2117.9,2117.6,0.001]
[1770583441199,1.01890527,2117.8,2117.6,0.001]
[1770583441400,1.18040062,2118.0,2117.6,0.001]
[1770583441608,1.01889641,2117.9,2117.6,0.001]
[1770583441897,1.18040062,2118.0,2117.6,0.001]
[1770583442107,1.01889652,2117.9,2117.6,0.001]
[1770583442297,1.01889652,2117.8,2117.6,0.001]
[1770583442494,1.18040062,2118.0,2117.6,0.001]
[1770583442686,1.01902051,2117.9,2117.6,0.001]
[1770583442890,1.01902051,2117.8,2117.6,0.001]
[1770583443087,1.18040062,2118.0,2117.6,0.001]
[1770583443289,1.01911729,2117.9,2117.6,0.001]
[1770583443485,1.01911729,2117.8,2117.6,0.001]
[1770583443718,2.08121817,2118.0,2117.6,0.001]
[1770583443921,1.01914462,2117.9,2117.6,0.001]
[1770583444114,1.01914462,2117.8,2117.6,0.001]
[1770583444321,2.08121817,2118.0,2117.6,0.001]